[Event "Titled Tuesday Blitz July 4 Early 2023"]
[White "Fernandez, Michael"]
[Black "Ljukin, Sergei"]
[WhiteFideId "5803560"]
[BlackFideId "14102200"]
[WhiteElo "2362"]
[BlackElo "2506"]
[Result "1-0"]
[Round "10"]
[TimeControl "180+2"]
[Date "2023.07.04"]
[WhiteClock "0:00:07"]
[BlackClock "0:00:07"]
[Board "120"]

1. e4 {[%clk 0:02:21]}  e6 {[%clk 0:02:57]} 2. d4 {[%clk 0:02:21]}  d5 {[%clk 0:02:58]} 3. Nc3 {[%clk 0:02:21]}  Bb4 {[%clk 0:02:57]} 4. e5 {[%clk 0:02:21]}  Ne7 {[%clk 0:02:57]} 5. Bd2 {[%clk 0:02:19]}  b6 {[%clk 0:02:57]} 6. Nf3 {[%clk 0:02:14]}  O-O {[%clk 0:02:55]} 7. a3 {[%clk 0:02:11]}  Bxc3 {[%clk 0:02:54]} 8. Bxc3 {[%clk 0:02:12]}  Ba6 {[%clk 0:02:55]} 9. Bxa6 {[%clk 0:02:11]}  Nxa6 {[%clk 0:02:55]} 10. Qd3 {[%clk 0:02:11]}  Nb8 {[%clk 0:02:55]} 11. h4 {[%clk 0:02:10]}  c5 {[%clk 0:02:52]} 12. Ng5 {[%clk 0:02:08]}  Ng6 {[%clk 0:02:02]} 13. Qg3 {[%clk 0:01:35]}  h6 {[%clk 0:01:47]} 14. Nxe6 {[%clk 0:01:27]}  fxe6 {[%clk 0:01:42]} 15. Qxg6 {[%clk 0:01:27]}  Qe7 {[%clk 0:01:41]} 16. dxc5 {[%clk 0:01:17]}  bxc5 {[%clk 0:01:40]} 17. Bd2 {[%clk 0:00:54]}  Nc6 {[%clk 0:01:26]} 18. f4 {[%clk 0:00:51]}  Rab8 {[%clk 0:01:11]} 19. b3 {[%clk 0:00:49]}  Nd4 {[%clk 0:01:07]} 20. Qd3 {[%clk 0:00:47]}  h5 {[%clk 0:00:42]} 21. g3 {[%clk 0:00:32]}  Nf5 {[%clk 0:00:39]} 22. O-O {[%clk 0:00:28]}  Rfc8 {[%clk 0:00:34]} 23. Rab1 {[%clk 0:00:25]}  Rb6 {[%clk 0:00:27]} 24. c4 {[%clk 0:00:22]}  Rd8 {[%clk 0:00:14]} 25. Ba5 {[%clk 0:00:18]}  dxc4 {[%clk 0:00:14]} 26. Qxc4 {[%clk 0:00:15]}  Rd4 {[%clk 0:00:14]} 27. Qc3 {[%clk 0:00:09]}  Rb8 {[%clk 0:00:14]} 28. Rbc1 {[%clk 0:00:07]}  Rc8 {[%clk 0:00:12]} 29. Rfd1 {[%clk 0:00:06]}  Rcd8 {[%clk 0:00:11]} 30. Rxd4 {[%clk 0:00:04]}  Rxd4 {[%clk 0:00:11]} 31. Rc2 {[%clk 0:00:02]}  Qd7 {[%clk 0:00:10]} 32. Rd2 {[%clk 0:00:02]}  Qd5 {[%clk 0:00:09]} 33. Rxd4 {[%clk 0:00:01]}  cxd4 {[%clk 0:00:09]} 34. Qd3 {[%clk 0:00:02]}  Qd7 {[%clk 0:00:09]} 35. Bd2 {[%clk 0:00:01]}  Qd5 {[%clk 0:00:09]} 36. b4 {[%clk 0:00:02]}  Kh7 {[%clk 0:00:09]} 37. Kf2 {[%clk 0:00:02]}  a6 {[%clk 0:00:09]} 38. Qf3 {[%clk 0:00:02]}  Qc4 {[%clk 0:00:09]} 39. Qxh5+ {[%clk 0:00:03]}  Kg8 {[%clk 0:00:09]} 40. Qe8+ {[%clk 0:00:03]}  Kh7 {[%clk 0:00:09]} 41. Qh5+ {[%clk 0:00:04]}  Nh6 {[%clk 0:00:09]} 42. Qe2 {[%clk 0:00:05]}  Qc2 {[%clk 0:00:09]} 43. f5 {[%clk 0:00:05]}  Qxf5+ {[%clk 0:00:09]} 44. Qf3 {[%clk 0:00:05]}  Ng4+ {[%clk 0:00:09]} 45. Kg2 {[%clk 0:00:04]}  Nxe5 {[%clk 0:00:08]} 46. Qxf5+ {[%clk 0:00:04]}  exf5 {[%clk 0:00:08]} 47. a4 {[%clk 0:00:04]}  Nc4 {[%clk 0:00:09]} 48. Bf4 {[%clk 0:00:03]}  d3 {[%clk 0:00:09]} 49. Kf3 {[%clk 0:00:04]}  d2 {[%clk 0:00:09]} 50. Ke2 {[%clk 0:00:04]}  g5 {[%clk 0:00:09]} 51. hxg5 {[%clk 0:00:04]}  Kg6 {[%clk 0:00:09]} 52. Bxd2 {[%clk 0:00:04]}  Nb2 {[%clk 0:00:09]} 53. b5 {[%clk 0:00:04]}  axb5 {[%clk 0:00:09]} 54. axb5 {[%clk 0:00:05]}  Nc4 {[%clk 0:00:10]} 55. Be3 {[%clk 0:00:06]}  Kf7 {[%clk 0:00:10]} 56. b6 {[%clk 0:00:06]}  Nd6 {[%clk 0:00:10]} 57. Bf4 {[%clk 0:00:06]}  Nb7 {[%clk 0:00:11]} 58. Kd3 {[%clk 0:00:07]}  Ke6 {[%clk 0:00:07]} 59. Kd4 {[%clk 0:00:07]} 1-0


[Site "https://www.chess.com"]

[Event "Titled Tuesday Blitz July 4 Early 2023"]
[White "Belov, Alexei"]
[Black "Koridze, Lile"]
[WhiteFideId "4128206"]
[BlackFideId "13612514"]
[WhiteElo "2486"]
[BlackElo "2352"]
[Result "1-0"]
[Round "10"]
[TimeControl "180+2"]
[Date "2023.07.04"]
[WhiteClock "0:00:19"]
[BlackClock "0:00:01"]
[Board "122"]

1. e4 {[%clk 0:03:00]}  c5 {[%clk 0:02:59]} 2. Nf3 {[%clk 0:02:51]}  d6 {[%clk 0:02:59]} 3. d4 {[%clk 0:02:52]}  cxd4 {[%clk 0:03:00]} 4. Nxd4 {[%clk 0:02:51]}  Nf6 {[%clk 0:03:00]} 5. Nc3 {[%clk 0:02:51]}  a6 {[%clk 0:03:00]} 6. Be2 {[%clk 0:02:51]}  e5 {[%clk 0:03:01]} 7. Nb3 {[%clk 0:02:51]}  Be7 {[%clk 0:03:00]} 8. O-O {[%clk 0:02:51]}  Be6 {[%clk 0:03:01]} 9. f4 {[%clk 0:02:51]}  Qc7 {[%clk 0:02:50]} 10. f5 {[%clk 0:02:51]}  Bc4 {[%clk 0:02:50]} 11. Kh1 {[%clk 0:02:51]}  b5 {[%clk 0:02:48]} 12. a3 {[%clk 0:02:35]}  O-O {[%clk 0:02:41]} 13. g4 {[%clk 0:02:33]}  h6 {[%clk 0:01:17]} 14. g5 {[%clk 0:02:33]}  hxg5 {[%clk 0:01:17]} 15. Bxg5 {[%clk 0:02:33]}  d5 {[%clk 0:01:13]} 16. Bxf6 {[%clk 0:02:23]}  Bxf6 {[%clk 0:01:12]} 17. Bxc4 {[%clk 0:02:22]}  dxc4 {[%clk 0:01:09]} 18. Nd5 {[%clk 0:02:22]}  Qc6 {[%clk 0:01:07]} 19. Nd2 {[%clk 0:02:16]}  Nd7 {[%clk 0:01:05]} 20. Qg4 {[%clk 0:02:00]}  Nb6 {[%clk 0:01:02]} 21. Nxf6+ {[%clk 0:01:55]}  Qxf6 {[%clk 0:01:02]} 22. Nf3 {[%clk 0:01:55]}  Rad8 {[%clk 0:00:50]} 23. Rg1 {[%clk 0:01:51]}  Rfe8 {[%clk 0:00:46]} 24. Rg2 {[%clk 0:01:51]}  Kf8 {[%clk 0:00:39]} 25. Rag1 {[%clk 0:01:40]}  Nd7 {[%clk 0:00:23]} 26. Qh5 {[%clk 0:01:26]}  Ke7 {[%clk 0:00:21]} 27. Rxg7 {[%clk 0:01:24]}  Rh8 {[%clk 0:00:20]} 28. Qg5 {[%clk 0:01:24]}  Nc5 {[%clk 0:00:19]} 29. Nxe5 {[%clk 0:01:14]}  Qxg5 {[%clk 0:00:19]} 30. R1xg5 {[%clk 0:00:57]}  Nxe4 {[%clk 0:00:19]} 31. Nxf7 {[%clk 0:00:50]}  Rd1+ {[%clk 0:00:19]} 32. Rg1 {[%clk 0:00:48]}  Nf2+ {[%clk 0:00:10]} 33. Kg2 {[%clk 0:00:48]}  Rxg1+ {[%clk 0:00:10]} 34. Kxg1 {[%clk 0:00:48]}  Nh3+ {[%clk 0:00:10]} 35. Kg2 {[%clk 0:00:46]}  Nf4+ {[%clk 0:00:10]} 36. Kf3 {[%clk 0:00:45]}  Rh4 {[%clk 0:00:09]} 37. Ne5+ {[%clk 0:00:37]}  Kf6 {[%clk 0:00:09]} 38. Rg4 {[%clk 0:00:33]}  Rxg4 {[%clk 0:00:03]} 39. Nxg4+ {[%clk 0:00:32]}  Kxf5 {[%clk 0:00:04]} 40. Ne3+ {[%clk 0:00:31]}  Ke5 {[%clk 0:00:04]} 41. h4 {[%clk 0:00:27]}  Ng6 {[%clk 0:00:04]} 42. Kg4 {[%clk 0:00:25]}  a5 {[%clk 0:00:04]} 43. h5 {[%clk 0:00:24]}  Nf8 {[%clk 0:00:03]} 44. a4 {[%clk 0:00:20]}  Kd4 {[%clk 0:00:03]} 45. axb5 {[%clk 0:00:19]}  Kxe3 {[%clk 0:00:02]} 46. b6 {[%clk 0:00:20]}  a4 {[%clk 0:00:03]} 47. b7 {[%clk 0:00:19]}  c3 {[%clk 0:00:01]} 48. b8=Q {[%clk 0:00:19]} 1-0


[Site "https://www.chess.com"]

[Event "Titled Tuesday Blitz July 4 Early 2023"]
[White "Dobre, Claudiu-Cristian"]
[Black "Rudzinska, Michalina"]
[WhiteFideId "1211854"]
[BlackFideId "1172883"]
[WhiteElo "2443"]
[BlackElo "2330"]
[Result "1-0"]
[Round "10"]
[TimeControl "180+2"]
[Date "2023.07.04"]
[WhiteClock "0:00:01"]
[BlackClock "0:00:00"]
[Board "124"]

1. e4 {[%clk 0:03:00]}  c6 {[%clk 0:02:58]} 2. Nf3 {[%clk 0:03:00]}  d5 {[%clk 0:02:58]} 3. exd5 {[%clk 0:03:00]}  cxd5 {[%clk 0:02:58]} 4. Ne5 {[%clk 0:03:00]}  g6 {[%clk 0:02:57]} 5. Bb5+ {[%clk 0:02:58]}  Nd7 {[%clk 0:02:54]} 6. d4 {[%clk 0:02:53]}  Bg7 {[%clk 0:02:53]} 7. O-O {[%clk 0:02:51]}  Nf6 {[%clk 0:02:53]} 8. Nd2 {[%clk 0:02:46]}  O-O {[%clk 0:02:51]} 9. f4 {[%clk 0:02:43]}  Qb6 {[%clk 0:02:43]} 10. Qe2 {[%clk 0:02:29]}  Qxd4+ {[%clk 0:02:43]} 11. Kh1 {[%clk 0:02:28]}  Nxe5 {[%clk 0:02:39]} 12. fxe5 {[%clk 0:02:25]}  Ne4 {[%clk 0:02:39]} 13. Nf3 {[%clk 0:01:48]}  Qb6 {[%clk 0:02:30]} 14. Be3 {[%clk 0:01:47]}  Qc7 {[%clk 0:02:27]} 15. Bd4 {[%clk 0:01:46]}  Bg4 {[%clk 0:02:23]} 16. Bd3 {[%clk 0:01:40]}  Nc5 {[%clk 0:02:19]} 17. Bxc5 {[%clk 0:01:34]}  Qxc5 {[%clk 0:02:20]} 18. h3 {[%clk 0:01:33]}  Bxf3 {[%clk 0:02:15]} 19. Rxf3 {[%clk 0:01:32]}  Qd4 {[%clk 0:02:15]} 20. e6 {[%clk 0:01:27]}  f5 {[%clk 0:02:14]} 21. c3 {[%clk 0:01:20]}  Qb6 {[%clk 0:02:14]} 22. g4 {[%clk 0:01:09]}  fxg4 {[%clk 0:02:11]} 23. Rf7 {[%clk 0:00:36]}  Rxf7 {[%clk 0:01:59]} 24. exf7+ {[%clk 0:00:35]}  Kxf7 {[%clk 0:01:59]} 25. Rf1+ {[%clk 0:00:31]}  Bf6 {[%clk 0:01:59]} 26. hxg4 {[%clk 0:00:31]}  Kg7 {[%clk 0:01:55]} 27. Qg2 {[%clk 0:00:18]}  Qe6 {[%clk 0:01:39]} 28. g5 {[%clk 0:00:17]}  Be5 {[%clk 0:01:39]} 29. Re1 {[%clk 0:00:14]}  Kg8 {[%clk 0:01:18]} 30. Re3 {[%clk 0:00:13]}  Qd6 {[%clk 0:01:14]} 31. Qe2 {[%clk 0:00:13]}  Bf4 {[%clk 0:01:00]} 32. Re6 {[%clk 0:00:12]}  Qd8 {[%clk 0:00:24]} 33. Rxe7 {[%clk 0:00:10]}  Qf8 {[%clk 0:00:20]} 34. Qe6+ {[%clk 0:00:09]}  Kh8 {[%clk 0:00:20]} 35. Rf7 {[%clk 0:00:08]}  Qd6 {[%clk 0:00:13]} 36. Qh3 {[%clk 0:00:08]}  h5 {[%clk 0:00:12]} 37. gxh6 {[%clk 0:00:07]}  Re8 {[%clk 0:00:09]} 38. Qf1 {[%clk 0:00:04]}  Bg3 {[%clk 0:00:07]} 39. Qf6+ {[%clk 0:00:03]}  Qxf6 {[%clk 0:00:07]} 40. Rxf6 {[%clk 0:00:04]}  Re3 {[%clk 0:00:06]} 41. Bb5 {[%clk 0:00:03]}  Be5 {[%clk 0:00:04]} 42. Rxg6 {[%clk 0:00:02]}  Re1+ {[%clk 0:00:03]} 43. Kg2 {[%clk 0:00:02]}  Rb1 {[%clk 0:00:04]} 44. Kf3 {[%clk 0:00:02]}  Rxb2 {[%clk 0:00:04]} 45. Kg4 {[%clk 0:00:03]}  Bxc3 {[%clk 0:00:04]} 46. Kf5 {[%clk 0:00:03]}  Rf2+ {[%clk 0:00:05]} 47. Ke6 {[%clk 0:00:03]}  d4 {[%clk 0:00:04]} 48. Bd3 {[%clk 0:00:03]}  Rf8 {[%clk 0:00:03]} 49. Rg7 {[%clk 0:00:02]}  Re8+ {[%clk 0:00:02]} 50. Kd7 {[%clk 0:00:02]}  Re3 {[%clk 0:00:00]} 51. Bg6 {[%clk 0:00:01]} 1-0


[Site "https://www.chess.com"]

[Event "Titled Tuesday Blitz July 4 Early 2023"]
[White "Manukian, Artak"]
[Black "CarolinaLujan"]
[WhiteFideId "13301373"]
[WhiteElo "2431"]
[BlackElo "2310"]
[Result "1/2-1/2"]
[Round "10"]
[TimeControl "180+2"]
[Date "2023.07.04"]
[WhiteClock "0:00:10"]
[BlackClock "0:01:17"]
[Board "125"]

1. e4 {[%clk 0:02:58]}  c5 {[%clk 0:02:58]} 2. Nf3 {[%clk 0:02:57]}  Nc6 {[%clk 0:02:57]} 3. c3 {[%clk 0:02:57]}  d5 {[%clk 0:02:55]} 4. exd5 {[%clk 0:02:57]}  Qxd5 {[%clk 0:02:56]} 5. d4 {[%clk 0:02:58]}  Bg4 {[%clk 0:02:55]} 6. Be2 {[%clk 0:02:57]}  Nf6 {[%clk 0:02:53]} 7. h3 {[%clk 0:02:56]}  Bf5 {[%clk 0:02:50]} 8. c4 {[%clk 0:02:45]}  Qd8 {[%clk 0:02:45]} 9. d5 {[%clk 0:02:42]}  Nb4 {[%clk 0:02:45]} 10. Na3 {[%clk 0:02:35]}  e6 {[%clk 0:02:45]} 11. dxe6 {[%clk 0:02:03]}  Qxd1+ {[%clk 0:02:43]} 12. Bxd1 {[%clk 0:02:03]}  Nd3+ {[%clk 0:02:37]} 13. Ke2 {[%clk 0:02:03]}  Nxc1+ {[%clk 0:02:37]} 14. Rxc1 {[%clk 0:02:04]}  Bxe6 {[%clk 0:02:38]} 15. Ba4+ {[%clk 0:01:58]}  Bd7 {[%clk 0:02:34]} 16. Bxd7+ {[%clk 0:01:54]}  Nxd7 {[%clk 0:02:29]} 17. Nb5 {[%clk 0:01:52]}  O-O-O {[%clk 0:02:23]} 18. Nxa7+ {[%clk 0:01:52]}  Kb8 {[%clk 0:02:24]} 19. Nb5 {[%clk 0:01:53]}  g6 {[%clk 0:02:20]} 20. Rhd1 {[%clk 0:01:48]}  Re8+ {[%clk 0:02:15]} 21. Kf1 {[%clk 0:01:45]}  Nb6 {[%clk 0:02:16]} 22. b3 {[%clk 0:01:41]}  Bh6 {[%clk 0:02:14]} 23. Rc2 {[%clk 0:01:36]}  Re6 {[%clk 0:02:13]} 24. Re2 {[%clk 0:01:31]}  Rhe8 {[%clk 0:02:13]} 25. Rxe6 {[%clk 0:01:27]}  Rxe6 {[%clk 0:02:13]} 26. Rd8+ {[%clk 0:01:22]}  Nc8 {[%clk 0:02:13]} 27. Rh8 {[%clk 0:01:22]}  g5 {[%clk 0:02:11]} 28. Rxh7 {[%clk 0:01:18]}  f5 {[%clk 0:02:04]} 29. g4 {[%clk 0:01:05]}  fxg4 {[%clk 0:02:03]} 30. hxg4 {[%clk 0:01:05]}  b6 {[%clk 0:01:47]} 31. Nc7 {[%clk 0:01:05]}  Rc6 {[%clk 0:01:42]} 32. Na6+ {[%clk 0:00:57]}  Ka8 {[%clk 0:01:42]} 33. Rc7 {[%clk 0:00:53]}  Rxc7 {[%clk 0:01:40]} 34. Nxc7+ {[%clk 0:00:54]}  Kb7 {[%clk 0:01:41]} 35. Nd5 {[%clk 0:00:54]}  Nd6 {[%clk 0:01:39]} 36. Ne5 {[%clk 0:00:53]}  Bg7 {[%clk 0:01:37]} 37. Nf3 {[%clk 0:00:47]}  Ne4 {[%clk 0:01:37]} 38. Ke2 {[%clk 0:00:45]}  Bd4 {[%clk 0:01:32]} 39. Nxd4 {[%clk 0:00:41]}  cxd4 {[%clk 0:01:32]} 40. f3 {[%clk 0:00:40]}  Nc5 {[%clk 0:01:29]} 41. Nb4 {[%clk 0:00:40]}  Kc7 {[%clk 0:01:28]} 42. Nd3 {[%clk 0:00:38]}  Ne6 {[%clk 0:01:27]} 43. b4 {[%clk 0:00:32]}  Kd6 {[%clk 0:01:28]} 44. a4 {[%clk 0:00:30]}  Kc6 {[%clk 0:01:26]} 45. Kd2 {[%clk 0:00:24]}  Kd6 {[%clk 0:01:25]} 46. c5+ {[%clk 0:00:19]}  bxc5 {[%clk 0:01:25]} 47. Nxc5 {[%clk 0:00:20]}  Nf4 {[%clk 0:01:23]} 48. Ne4+ {[%clk 0:00:20]}  Kd5 {[%clk 0:01:22]} 49. Nxg5 {[%clk 0:00:20]}  Kc4 {[%clk 0:01:22]} 50. b5 {[%clk 0:00:21]}  Nd5 {[%clk 0:01:19]} 51. Ne4 {[%clk 0:00:20]}  Kb4 {[%clk 0:01:20]} 52. g5 {[%clk 0:00:19]}  Kxa4 {[%clk 0:01:18]} 53. g6 {[%clk 0:00:18]}  Kxb5 {[%clk 0:01:17]} 54. g7 {[%clk 0:00:18]}  Ne7 {[%clk 0:01:17]} 55. Nf6 {[%clk 0:00:16]}  Kc5 {[%clk 0:01:18]} 56. Kd3 {[%clk 0:00:14]}  Kd6 {[%clk 0:01:16]} 57. g8=Q {[%clk 0:00:14]}  Nxg8 {[%clk 0:01:15]} 58. Nxg8 {[%clk 0:00:15]}  Ke5 {[%clk 0:01:16]} 59. Nh6 {[%clk 0:00:13]}  Kf4 {[%clk 0:01:16]} 60. Kxd4 {[%clk 0:00:10]}  Kxf3 {[%clk 0:01:17]} 1/2-1/2


[Site "https://www.chess.com"]

[Event "Titled Tuesday Blitz July 4 Early 2023"]
[White "Acikel, Mert"]
[Black "Philippe, Guillaume"]
[WhiteFideId "12956465"]
[BlackFideId "36048763"]
[WhiteElo "2300"]
[BlackElo "2417"]
[Result "1/2-1/2"]
[Round "10"]
[TimeControl "180+2"]
[Date "2023.07.04"]
[WhiteClock "0:00:00"]
[BlackClock "0:00:13"]
[Board "126"]

1. e4 {[%clk 0:02:59]}  c5 {[%clk 0:02:59]} 2. Nf3 {[%clk 0:02:58]}  Nc6 {[%clk 0:02:59]} 3. Bb5 {[%clk 0:02:59]}  e6 {[%clk 0:02:59]} 4. O-O {[%clk 0:02:56]}  Nge7 {[%clk 0:02:59]} 5. d4 {[%clk 0:02:56]}  cxd4 {[%clk 0:02:59]} 6. Nxd4 {[%clk 0:02:57]}  Ng6 {[%clk 0:03:00]} 7. Re1 {[%clk 0:02:55]}  Be7 {[%clk 0:03:00]} 8. Nc3 {[%clk 0:02:53]}  O-O {[%clk 0:03:00]} 9. Be3 {[%clk 0:02:52]}  a6 {[%clk 0:03:00]} 10. Bf1 {[%clk 0:02:51]}  Qc7 {[%clk 0:02:59]} 11. Qd2 {[%clk 0:02:50]}  b5 {[%clk 0:02:59]} 12. h3 {[%clk 0:02:49]}  Bb7 {[%clk 0:02:59]} 13. Rad1 {[%clk 0:02:46]}  Rac8 {[%clk 0:02:50]} 14. g3 {[%clk 0:02:41]}  Na5 {[%clk 0:02:48]} 15. Nb3 {[%clk 0:01:51]}  Ne5 {[%clk 0:02:24]} 16. Qe2 {[%clk 0:01:21]}  b4 {[%clk 0:02:16]} 17. Na4 {[%clk 0:01:10]}  Bxe4 {[%clk 0:02:11]} 18. Bb6 {[%clk 0:00:58]}  Nf3+ {[%clk 0:02:08]} 19. Kh1 {[%clk 0:00:39]}  Nxe1+ {[%clk 0:01:18]} 20. Qxe4 {[%clk 0:00:39]}  Qxc2 {[%clk 0:01:16]} 21. Qxc2 {[%clk 0:00:30]}  Nxc2 {[%clk 0:01:15]} 22. Bxa5 {[%clk 0:00:29]}  d5 {[%clk 0:01:15]} 23. Bxa6 {[%clk 0:00:26]}  Ra8 {[%clk 0:01:14]} 24. Bd3 {[%clk 0:00:27]}  Nd4 {[%clk 0:01:02]} 25. Nxd4 {[%clk 0:00:27]}  Rxa5 {[%clk 0:01:03]} 26. b3 {[%clk 0:00:27]}  Bf6 {[%clk 0:01:02]} 27. Nc6 {[%clk 0:00:22]}  Raa8 {[%clk 0:01:03]} 28. Nxb4 {[%clk 0:00:23]}  Rfd8 {[%clk 0:01:02]} 29. Rc1 {[%clk 0:00:19]}  e5 {[%clk 0:01:01]} 30. Be2 {[%clk 0:00:18]}  e4 {[%clk 0:00:59]} 31. Nb6 {[%clk 0:00:15]}  Ra5 {[%clk 0:00:57]} 32. Nc6 {[%clk 0:00:12]}  Bb2 {[%clk 0:00:57]} 33. Rc2 {[%clk 0:00:12]}  Bd4 {[%clk 0:00:50]} 34. Nxd4 {[%clk 0:00:11]}  Ra3 {[%clk 0:00:46]} 35. Kg2 {[%clk 0:00:11]}  g6 {[%clk 0:00:46]} 36. Nb5 {[%clk 0:00:09]}  Ra5 {[%clk 0:00:44]} 37. Nd4 {[%clk 0:00:09]}  h5 {[%clk 0:00:42]} 38. a4 {[%clk 0:00:09]}  Rd6 {[%clk 0:00:39]} 39. Nc8 {[%clk 0:00:07]}  Rf6 {[%clk 0:00:38]} 40. Ne7+ {[%clk 0:00:07]}  Kg7 {[%clk 0:00:38]} 41. Bb5 {[%clk 0:00:07]}  h4 {[%clk 0:00:36]} 42. Nxd5 {[%clk 0:00:07]}  Rd6 {[%clk 0:00:36]} 43. Rc5 {[%clk 0:00:08]}  hxg3 {[%clk 0:00:35]} 44. Kxg3 {[%clk 0:00:08]}  f5 {[%clk 0:00:34]} 45. Ne2 {[%clk 0:00:08]}  g5 {[%clk 0:00:34]} 46. f4 {[%clk 0:00:07]}  exf3 {[%clk 0:00:34]} 47. Kxf3 {[%clk 0:00:07]}  Kg6 {[%clk 0:00:33]} 48. Ne3 {[%clk 0:00:06]}  f4 {[%clk 0:00:33]} 49. Nc4 {[%clk 0:00:06]}  Rd3+ {[%clk 0:00:32]} 50. Kg2 {[%clk 0:00:07]}  f3+ {[%clk 0:00:14]} 51. Kf2 {[%clk 0:00:07]}  fxe2 {[%clk 0:00:14]} 52. Be8+ {[%clk 0:00:07]}  Kf6 {[%clk 0:00:12]} 53. Rxa5 {[%clk 0:00:06]}  Rxb3 {[%clk 0:00:05]} 54. Kxe2 {[%clk 0:00:07]}  Rxh3 {[%clk 0:00:05]} 55. Bd7 {[%clk 0:00:07]}  Rc3 {[%clk 0:00:05]} 56. Rc5 {[%clk 0:00:07]}  Ke7 {[%clk 0:00:04]} 57. Bb5 {[%clk 0:00:07]}  g4 {[%clk 0:00:04]} 58. a5 {[%clk 0:00:07]}  g3 {[%clk 0:00:04]} 59. a6 {[%clk 0:00:08]}  g2 {[%clk 0:00:03]} 60. Kf2 {[%clk 0:00:08]}  Rc2+ {[%clk 0:00:03]} 61. Kg1 {[%clk 0:00:08]}  Ra2 {[%clk 0:00:04]} 62. Rc7+ {[%clk 0:00:08]}  Kd8 {[%clk 0:00:05]} 63. Rb7 {[%clk 0:00:07]}  Kc8 {[%clk 0:00:05]} 64. Rg7 {[%clk 0:00:08]}  Kb8 {[%clk 0:00:03]} 65. a7+ {[%clk 0:00:07]}  Rxa7 {[%clk 0:00:02]} 66. Rxa7 {[%clk 0:00:05]}  Kxa7 {[%clk 0:00:02]} 67. Bc6 {[%clk 0:00:06]}  Kb8 {[%clk 0:00:02]} 68. Bxg2 {[%clk 0:00:07]}  Kc7 {[%clk 0:00:03]} 69. Kf2 {[%clk 0:00:08]}  Kb8 {[%clk 0:00:04]} 70. Ke3 {[%clk 0:00:08]}  Kc7 {[%clk 0:00:05]} 71. Kd4 {[%clk 0:00:09]}  Kd7 {[%clk 0:00:05]} 72. Kd5 {[%clk 0:00:10]}  Ke7 {[%clk 0:00:05]} 73. Bh3 {[%clk 0:00:10]}  Kf6 {[%clk 0:00:05]} 74. Ke4 {[%clk 0:00:10]}  Ke7 {[%clk 0:00:06]} 75. Ke5 {[%clk 0:00:10]}  Kf7 {[%clk 0:00:06]} 76. Nd6+ {[%clk 0:00:11]}  Ke7 {[%clk 0:00:07]} 77. Be6 {[%clk 0:00:11]}  Kd8 {[%clk 0:00:05]} 78. Nb5 {[%clk 0:00:11]}  Ke7 {[%clk 0:00:05]} 79. Nd4 {[%clk 0:00:11]}  Ke8 {[%clk 0:00:03]} 80. Nc6 {[%clk 0:00:10]}  Kf8 {[%clk 0:00:03]} 81. Kf6 {[%clk 0:00:09]}  Ke8 {[%clk 0:00:03]} 82. Bf5 {[%clk 0:00:08]}  Kf8 {[%clk 0:00:03]} 83. Ne5 {[%clk 0:00:08]}  Ke8 {[%clk 0:00:03]} 84. Nf7 {[%clk 0:00:09]}  Kf8 {[%clk 0:00:03]} 85. Bh7 {[%clk 0:00:09]}  Ke8 {[%clk 0:00:04]} 86. Ne5 {[%clk 0:00:10]}  Kd8 {[%clk 0:00:04]} 87. Ke6 {[%clk 0:00:09]}  Kc7 {[%clk 0:00:04]} 88. Nd7 {[%clk 0:00:08]}  Kc6 {[%clk 0:00:04]} 89. Bd3 {[%clk 0:00:08]}  Kc7 {[%clk 0:00:04]} 90. Be4 {[%clk 0:00:06]}  Kc8 {[%clk 0:00:05]} 91. Kd6 {[%clk 0:00:05]}  Kd8 {[%clk 0:00:05]} 92. Bd5 {[%clk 0:00:05]}  Ke8 {[%clk 0:00:05]} 93. Be6 {[%clk 0:00:06]}  Kd8 {[%clk 0:00:06]} 94. Bf7 {[%clk 0:00:06]}  Kc8 {[%clk 0:00:07]} 95. Nc5 {[%clk 0:00:07]}  Kd8 {[%clk 0:00:07]} 96. Nb7+ {[%clk 0:00:06]}  Kc8 {[%clk 0:00:08]} 97. Kc6 {[%clk 0:00:07]}  Kb8 {[%clk 0:00:08]} 98. Bc4 {[%clk 0:00:05]}  Kc8 {[%clk 0:00:09]} 99. Bd3 {[%clk 0:00:03]}  Kb8 {[%clk 0:00:10]} 100. Nc5 {[%clk 0:00:01]}  Ka7 {[%clk 0:00:11]} 101. Be4 {[%clk 0:00:02]}  Kb8 {[%clk 0:00:12]} 102. Bf5 {[%clk 0:00:02]}  Ka8 {[%clk 0:00:12]} 103. Kb6 {[%clk 0:00:00]}  Kb8 {[%clk 0:00:13]} 1/2-1/2


[Site "https://www.chess.com"]